{"text_format":"1","workbook":"xlsx","n_sheets":4,"sheets":["1","2","3","4"],"not_rendered":{"charts":0,"images":0,"macros":1,"external_links":0,"defined_names":1,"comments":0,"pivot_tables":0},"unopened":[],"bounds":{"document_bytes":16777216,"sheet_cells":100000,"rows_first":2000,"rows_last":500,"rows_between":2000,"halvings":0,"cell_chars":16384,"cell_head_chars":4096},"cells_cut":0,"cells_raw":0,"read":"whole","date_system":"1900"}

{"sheet":"1","index":0,"n_rows":3,"n_cols":7,"rows_kept":3,"cut":false,"hidden":false,"merged":[]}
["Животные","Номер","Номер","Номер","Номер","Номер","Номер"]
["кролик",33,77,55,22,44,66]
["бобёр",20,40,60,10,50,30]

{"sheet":"2","index":1,"n_rows":13,"n_cols":9,"rows_kept":13,"cut":false,"hidden":false,"merged":[]}
["Номер","характеристика","Животные","количество","0","1",null,3,{"$f":"INDEX('1'!A:A,H1)","v":"бобёр"}]
[22,"пушистый","кролик",100,{"$f":"IF(Таблица1[[#This Row],[Животные]]=I$1,IF(ISNA(MATCH(Таблица1[[#This Row],[Номер]],INDEX('1'!$1:$1048576,H$1,),)),E1+1,E1),E1)","v":"0"},{"$f":"IFERROR(INDEX(Таблица1[Номер],MATCH(ROW(F1),Таблица1[0],))&\" | \"&INDEX(Таблица1[характеристика],MATCH(ROW(F1),Таблица1[0],)),\"|\")","v":"|"}]
[33,"вкусный","кролик",200,{"$f":"IF(Таблица1[[#This Row],[Животные]]=I$1,IF(ISNA(MATCH(Таблица1[[#This Row],[Номер]],INDEX('1'!$1:$1048576,H$1,),)),E2+1,E2),E2)","v":"0"},{"$f":"IFERROR(INDEX(Таблица1[Номер],MATCH(ROW(F2),Таблица1[0],))&\" | \"&INDEX(Таблица1[характеристика],MATCH(ROW(F2),Таблица1[0],)),\"|\")","v":"|"},null,{"$f":"IF(F2=\"|\",\"|\",\"F2:F\"&MATCH(\"|\",Таблица1[1],))","v":"|"}]
[44,"породистый","кролик",300,{"$f":"IF(Таблица1[[#This Row],[Животные]]=I$1,IF(ISNA(MATCH(Таблица1[[#This Row],[Номер]],INDEX('1'!$1:$1048576,H$1,),)),E3+1,E3),E3)","v":"0"},{"$f":"IFERROR(INDEX(Таблица1[Номер],MATCH(ROW(F3),Таблица1[0],))&\" | \"&INDEX(Таблица1[характеристика],MATCH(ROW(F3),Таблица1[0],)),\"|\")","v":"|"},null,{"$f":"CELL(\"filename\",I5)","v":"D:\\[1114.xlsm]2"}]
[55,"мертвый","кролик",400,{"$f":"IF(Таблица1[[#This Row],[Животные]]=I$1,IF(ISNA(MATCH(Таблица1[[#This Row],[Номер]],INDEX('1'!$1:$1048576,H$1,),)),E4+1,E4),E4)","v":"0"},{"$f":"IFERROR(INDEX(Таблица1[Номер],MATCH(ROW(F4),Таблица1[0],))&\" | \"&INDEX(Таблица1[характеристика],MATCH(ROW(F4),Таблица1[0],)),\"|\")","v":"|"},null,{"$f":"\"'\"&MID(H4,SEARCH(\"]\",H4)+1,31)&\"'!\"&H3","v":"'2'!|"}]
[66,"ушастый","кролик",500,{"$f":"IF(Таблица1[[#This Row],[Животные]]=I$1,IF(ISNA(MATCH(Таблица1[[#This Row],[Номер]],INDEX('1'!$1:$1048576,H$1,),)),E5+1,E5),E5)","v":"0"},{"$f":"IFERROR(INDEX(Таблица1[Номер],MATCH(ROW(F5),Таблица1[0],))&\" | \"&INDEX(Таблица1[характеристика],MATCH(ROW(F5),Таблица1[0],)),\"|\")","v":"|"}]
[77,"великан","кролик",600,{"$f":"IF(Таблица1[[#This Row],[Животные]]=I$1,IF(ISNA(MATCH(Таблица1[[#This Row],[Номер]],INDEX('1'!$1:$1048576,H$1,),)),E6+1,E6),E6)","v":"0"},{"$f":"IFERROR(INDEX(Таблица1[Номер],MATCH(ROW(F6),Таблица1[0],))&\" | \"&INDEX(Таблица1[характеристика],MATCH(ROW(F6),Таблица1[0],)),\"|\")","v":"|"}]
[10,"плотник","бобёр",150,{"$f":"IF(Таблица1[[#This Row],[Животные]]=I$1,IF(ISNA(MATCH(Таблица1[[#This Row],[Номер]],INDEX('1'!$1:$1048576,H$1,),)),E7+1,E7),E7)","v":"0"},{"$f":"IFERROR(INDEX(Таблица1[Номер],MATCH(ROW(F7),Таблица1[0],))&\" | \"&INDEX(Таблица1[характеристика],MATCH(ROW(F7),Таблица1[0],)),\"|\")","v":"|"}]
[20,"курва","бобёр",250,{"$f":"IF(Таблица1[[#This Row],[Животные]]=I$1,IF(ISNA(MATCH(Таблица1[[#This Row],[Номер]],INDEX('1'!$1:$1048576,H$1,),)),E8+1,E8),E8)","v":"0"},{"$f":"IFERROR(INDEX(Таблица1[Номер],MATCH(ROW(F8),Таблица1[0],))&\" | \"&INDEX(Таблица1[характеристика],MATCH(ROW(F8),Таблица1[0],)),\"|\")","v":"|"}]
[30,"древоед","бобёр",350,{"$f":"IF(Таблица1[[#This Row],[Животные]]=I$1,IF(ISNA(MATCH(Таблица1[[#This Row],[Номер]],INDEX('1'!$1:$1048576,H$1,),)),E9+1,E9),E9)","v":"0"},{"$f":"IFERROR(INDEX(Таблица1[Номер],MATCH(ROW(F9),Таблица1[0],))&\" | \"&INDEX(Таблица1[характеристика],MATCH(ROW(F9),Таблица1[0],)),\"|\")","v":"|"}]
[40,"мокрый","бобёр",450,{"$f":"IF(Таблица1[[#This Row],[Животные]]=I$1,IF(ISNA(MATCH(Таблица1[[#This Row],[Номер]],INDEX('1'!$1:$1048576,H$1,),)),E10+1,E10),E10)","v":"0"},{"$f":"IFERROR(INDEX(Таблица1[Номер],MATCH(ROW(F10),Таблица1[0],))&\" | \"&INDEX(Таблица1[характеристика],MATCH(ROW(F10),Таблица1[0],)),\"|\")","v":"|"}]
[50,"водолаз","бобёр",550,{"$f":"IF(Таблица1[[#This Row],[Животные]]=I$1,IF(ISNA(MATCH(Таблица1[[#This Row],[Номер]],INDEX('1'!$1:$1048576,H$1,),)),E11+1,E11),E11)","v":"0"},{"$f":"IFERROR(INDEX(Таблица1[Номер],MATCH(ROW(F11),Таблица1[0],))&\" | \"&INDEX(Таблица1[характеристика],MATCH(ROW(F11),Таблица1[0],)),\"|\")","v":"|"}]
[60,"веган","бобёр",650,{"$f":"IF(Таблица1[[#This Row],[Животные]]=I$1,IF(ISNA(MATCH(Таблица1[[#This Row],[Номер]],INDEX('1'!$1:$1048576,H$1,),)),E12+1,E12),E12)","v":"0"},{"$f":"IFERROR(INDEX(Таблица1[Номер],MATCH(ROW(F12),Таблица1[0],))&\" | \"&INDEX(Таблица1[характеристика],MATCH(ROW(F12),Таблица1[0],)),\"|\")","v":"|"}]

{"sheet":"3","index":2,"n_rows":3,"n_cols":2,"rows_kept":3,"cut":false,"hidden":false,"merged":[]}
["животное","количество"]
["кролик",100]
["бобёр",50]

{"sheet":"4","index":3,"n_rows":1,"n_cols":4,"rows_kept":1,"cut":false,"hidden":false,"merged":[]}
["животные","номер","характеристика","количество"]